bitfinex/quotes_SOLUSD_20250617
["timestamp","ask_amount","ask_price","bid_price","bid_amount"]
[1750189317482,14.02618031,149.45,149.41,6.69281342]
[1750189317789,14.02618031,149.45,149.41,20.71899373]
[1750189319686,14.02618031,149.46,149.42,14.02618031]
[1750189320191,40.02618031,149.48,149.42,18.64964886]
[1750189320484,24.68069438,149.52,149.47,32.67582917]
[1750189320485,7.96048328,149.52,149.47,32.67582917]
[1750189320684,7.96048328,149.52,149.49,14.02618031]
[1750189320986,7.96048328,149.52,149.51,14.02618031]
[1750189321488,6.68556702,149.58,149.51,14.02618031]
[1750189321685,14.02618031,149.56,149.52,20.71424879]
[1750189321899,14.02618031,149.57,149.53,14.02618031]
[1750189322683,14.02618031,149.57,149.52,20.71424879]
[1750189323270,14.02618031,149.57,149.53,14.02618031]
[1750189323464,1.5324,149.6,149.55,14.02618031]
[1750189323692,1.5324,149.6,149.52,6.68806848]
[1750189323693,14.02618031,149.58,149.54,14.02618031]
[1750189323992,14.02618031,149.57,149.54,6.68674445]
[1750189324878,14.02618031,149.58,149.54,6.68674445]
[1750189325078,14.02618031,149.55,149.51,14.02618031]
[1750189325283,14.02618031,149.52,149.5,6.54]
[1750189325495,14.02618031,149.51,149.5,6.54]
[1750189325808,14.02618031,149.52,149.47,39.36613491]
[1750189325978,14.02618031,149.51,149.47,39.36613491]
[1750189328079,14.02618031,149.5,149.46,6.69060525]
[1750189328596,14.02618031,149.5,149.46,20.71678556]
[1750189330202,6.68807006,149.52,149.46,20.71678556]
[1750189330377,14.02618031,149.48,149.45,13.23119052]
[1750189330699,14.02618031,149.46,149.41,14.02618031]
[1750189330996,0.14216157,149.5,149.43,14.02618031]
[1750189331177,14.02618031,149.47,149.43,14.02618031]
[1750189332105,14.02618031,149.47,149.43,20.71790278]
[1750189332493,14.02618031,149.46,149.43,6.69172247]
[1750189333226,14.02618031,149.47,149.43,20.71790278]
[1750189333723,14.02618031,149.48,149.43,20.71790278]
[1750189333899,14.02618031,149.47,149.43,20.71790278]
[1750189334209,6.69018974,149.48,149.41,6.69299243]
[1750189334396,14.02618031,149.46,149.42,14.02618031]
[1750189335223,6.69018974,149.48,149.43,6.69209663]
[1750189335726,14.02618031,149.46,149.42,20.71855149]
[1750189335888,6.69018974,149.48,149.42,20.71855149]
[1750189335889,32.6895282,149.49,149.44,14.02618031]
[1750189336224,32.6895282,149.49,149.43,14.02618031]
[1750189336428,14.02618031,149.47,149.43,14.02618031]
[1750189336994,14.02618031,149.47,149.44,6.69164882]
[1750189337196,32.6895282,149.49,149.44,6.69164882]
[1750189337927,14.02618031,149.46,149.43,6.69195074]
[1750189339095,14.02618031,149.49,149.45,14.02618031]
[1750189340106,14.02618031,149.51,149.46,14.02618031]
[1750189340435,14.02618031,149.5,149.46,20.71658929]
[1750189340724,14.02618031,149.51,149.46,20.71658929]
[1750189341530,14.02618031,149.51,149.47,14.02618031]
[1750189341710,14.02618031,149.52,149.48,14.02618031]
[1750189342116,14.02618031,149.5,149.46,14.02618031]
[1750189342324,14.02618031,149.47,149.45,6.69112908]
[1750189342525,14.02618031,149.49,149.45,6.69112908]
[1750189343227,14.02618031,149.48,149.45,6.69112908]
[1750189345701,14.02618031,149.48,149.44,20.71764852]
[1750189346102,14.02618031,149.48,149.44,6.69146821]
[1750189346416,14.02618031,149.47,149.44,6.69146821]
[1750189346739,6.68947303,149.49,149.41,6.69299243]
[1750189346740,14.02618031,149.46,149.41,6.69299243]
[1750189346900,14.02618031,149.45,149.41,39.3688216]
[1750189347113,14.02618031,149.46,149.42,14.02618031]
[1750189347314,6.68928343,149.5,149.44,14.02618031]
[1750189347522,6.68928343,149.5,149.46,14.02618031]
[1750189347523,14.02618031,149.5,149.46,14.02618031]
[1750189347743,6.68902654,149.5,149.45,20.71719684]
[1750189347926,14.02618031,149.49,149.45,20.71719684]
[1750189350951,8.22892822,149.49,149.45,14.91994475]
[1750189351923,7.72892822,149.49,149.45,14.91994475]
[1750189352626,7.72892822,149.49,149.45,6.69101653]
[1750189353421,7.72892822,149.49,149.43,6.69209663]
[1750189353817,7.72892822,149.49,149.4,14.48696157]
[1750189353818,8.22892822,149.45,149.41,6.69299243]
[1750189354343,8.22892822,149.46,149.42,8.22892822]
[1750189354946,8.22892822,149.46,149.42,14.92139719]
[1750189355244,7.68598776,149.53,149.43,8.22892822]
[1750189355245,16.72018521,149.52,149.43,8.22892822]
[1750189355437,8.22892822,149.48,149.44,8.22892822]
[1750189355758,8.22892822,149.47,149.43,8.22892822]
[1750189356422,8.22892822,149.46,149.42,6.69246897]
[1750189356616,8.22892822,149.46,149.42,14.92139719]
[1750189356818,14.11258953,149.46,149.42,6.69246897]
[1750189357117,14.11258953,149.45,149.42,6.69246897]
[1750189357318,14.11258953,149.45,149.41,20.80542208]
[1750189358615,6.69049578,149.47,149.41,20.80542208]
[1750189358821,14.11258953,149.45,149.41,20.80542208]
[1750189359047,14.11258953,149.46,149.41,6.69283255]
[1750189359248,14.11258953,149.46,149.42,14.11258953]
[1750189359651,6.69049578,149.47,149.42,20.80510228]
[1750189359856,14.11258953,149.46,149.42,20.80510228]
[1750189360366,14.37380255,149.53,149.45,14.11258953]
[1750189360664,14.37380255,149.53,149.47,14.11258953]
[1750189360665,34.21611479,149.53,149.47,14.11258953]
[1750189360823,27.5283,149.53,149.47,14.11258953]
[1750189361026,14.11258953,149.52,149.47,14.11258953]
[1750189361246,14.11258953,149.51,149.47,14.11258953]
[1750189361434,14.11258953,149.5,149.45,14.11258953]
[1750189361766,14.11258953,149.47,149.44,13.21122847]
[1750189362739,14.11258953,149.47,149.44,6.52]
[1750189364230,14.11258953,149.47,149.43,6.69189562]
[1750189364557,6.68814012,149.52,149.45,14.11258953]
[1750189364855,14.11258953,149.5,149.45,14.11258953]
[1750189365226,26.0,149.52,149.45,14.11258953]
[1750189365442,14.11258953,149.5,149.45,14.11258953]
[1750189366238,14.11258953,149.48,149.44,14.11258953]
[1750189366846,6.68871384,149.51,149.44,14.11258953]
[1750189367148,14.11258953,149.48,149.44,14.11258953]
[1750189367529,14.11258953,149.51,149.47,14.11258953]
[1750189367734,40.11258953,149.52,149.44,18.933972]
[1750189367935,40.11258953,149.52,149.48,14.11258953]
[1750189368133,40.11258953,149.52,149.49,6.68941066]
[1750189369061,14.11258953,149.51,149.48,6.68968593]
[1750189369726,26.0,149.52,149.48,6.68968593]
[1750189369727,32.68807073,149.52,149.48,6.68968593]
[1750189369928,14.11258953,149.5,149.48,6.68968593]
[1750189370159,14.11258953,149.5,149.47,6.69030574]
[1750189370333,6.15768776,149.55,149.47,6.69030574]
[1750189370545,14.11258953,149.53,149.49,14.11258953]
[1750189370769,40.11258953,149.54,149.49,14.11258953]
[1750189370936,14.11258953,149.54,149.5,14.11258953]
[1750189371435,14.11258953,149.54,149.48,18.64964886]
[1750189371754,0.402,149.53,149.5,14.11258953]
[1750189372256,0.402,149.53,149.51,20.80110534]
[1750189373436,0.402,149.53,149.51,6.68851581]
[1750189373650,0.402,149.53,149.51,20.80110534]
[1750189377060,0.402,149.53,149.49,23.41183382]
[1750189377362,0.402,149.53,149.51,14.11258953]
[1750189377556,0.402,149.53,149.5,18.933972]
[1750189377770,0.402,149.53,149.52,14.11258953]
[1750189378945,0.402,149.53,149.52,8.2199624]
[1750189379148,0.402,149.53,149.52,14.90803088]
[1750189380333,0.402,149.53,149.52,25.62204048]
[1750189380537,0.402,149.53,149.52,14.90803088]
[1750189381133,0.402,149.53,149.52,6.68806848]
[1750189381356,0.402,149.53,149.52,14.90803088]
[1750189382861,0.402,149.53,149.5,8.2199624]
[1750189383045,0.402,149.53,149.52,26.0]
[1750189383253,0.402,149.53,149.5,14.90866984]
[1750189383453,0.402,149.53,149.5,40.90866984]
[1750189386362,0.402,149.53,149.5,32.68870744]
[1750189386543,0.402,149.53,149.5,40.90866984]
[1750189386744,0.402,149.53,149.51,8.2199624]
[1750189387851,0.402,149.53,149.52,6.68806848]
[1750189388055,0.402,149.53,149.52,59.55767974]
[1750189388844,0.402,149.53,149.52,40.90803088]
[1750189389269,0.402,149.53,149.51,14.90838612]
[1750189389472,0.402,149.53,149.51,6.68842372]
[1750189389682,0.402,149.53,149.51,14.90838612]
[1750189391042,0.402,149.53,149.52,27.1539344]
[1750189391861,0.402,149.53,149.52,35.51605837]
[1750189392164,0.402,149.53,149.52,43.52895837]
[1750189392364,0.402,149.53,149.52,50.21702685]
[1750189392566,0.402,149.53,149.52,76.21702685]
[1750189393263,0.402,149.53,149.52,67.85490288]
[1750189393654,0.402,149.53,149.52,96.23490288]
[1750189394880,0.402,149.53,149.52,27.1539344]
[1750189395050,0.402,149.53,149.52,33.84200288]
[1750189396255,0.402,149.53,149.52,25.62204048]
[1750189396455,0.402,149.53,149.52,33.84200288]
[1750189397184,0.402,149.53,149.52,27.1539344]
[1750189397348,0.402,149.53,149.52,33.84200288]
[1750189397551,0.402,149.53,149.52,18.64964886]
[1750189398193,0.402,149.53,149.52,26.86961126]
[1750189399546,0.402,149.53,149.52,18.64964886]
[1750189399871,0.402,149.53,149.51,21.4084477]
[1750189400362,0.402,149.53,149.51,13.1884853]
[1750189400549,0.402,149.53,149.51,21.4084477]
[1750189401562,0.402,149.53,149.52,8.2199624]
[1750189402157,0.402,149.53,149.52,26.86961126]
[1750189402752,0.402,149.53,149.52,35.51605837]
[1750189405375,0.402,149.53,149.52,33.98416445]
[1750189405580,0.402,149.53,149.52,6.68806848]
[1750189406057,0.402,149.53,149.52,14.90803088]
[1750189409097,0.402,149.53,149.52,15.19235402]
[1750189409264,0.402,149.53,149.52,33.84200288]
[1750189410286,0.402,149.53,149.52,14.90803088]
[1750189410488,0.402,149.53,149.51,13.18838274]
[1750189410790,0.402,149.53,149.51,21.40834514]
[1750189411175,7.08993283,149.53,149.42,23.42390576]
[1750189411374,8.2199624,149.51,149.46,8.2199624]
[1750189411577,8.2199624,149.48,149.43,6.5]
[1750189411792,8.2199624,149.48,149.44,8.2199624]
[1750189412086,8.2199624,149.48,149.44,26.86961126]
[1750189412664,8.2199624,149.49,149.44,26.86961126]
[1750189412874,8.2199624,149.49,149.45,6.69120107]
[1750189413269,6.68893488,149.51,149.45,6.69120107]
[1750189413505,8.2199624,149.48,149.45,6.69120107]
[1750189413695,6.68893488,149.51,149.45,6.69120107]
[1750189413895,8.2199624,149.48,149.45,6.69120107]
[1750189415076,8.2199624,149.49,149.45,14.91116347]
[1750189415485,8.2199624,149.49,149.45,6.69120107]
[1750189415679,8.2199624,149.48,149.45,6.69120107]
[1750189416303,8.2199624,149.46,149.43,13.19176218]
[1750189416814,8.2199624,149.46,149.43,6.5]
[1750189417483,8.2199624,149.46,149.43,13.19201162]
[1750189418867,26.0,149.53,149.44,27.1539344]
[1750189419072,8.2199624,149.51,149.47,8.2199624]
[1750189419487,8.2199624,149.49,149.45,8.2199624]
[1750189419699,8.2199624,149.49,149.45,14.91072012]
[1750189420811,8.6219624,149.49,149.45,6.69075772]
[1750189421182,8.6219624,149.49,149.45,14.91072012]
[1750189421380,8.6219624,149.49,149.45,6.69075772]
[1750189421909,8.6219624,149.49,149.45,14.91072012]
[1750189422096,0.402,149.49,149.45,14.91072012]
[1750189422303,0.402,149.49,149.46,8.2199624]
[1750189422606,0.402,149.49,149.48,8.2199624]
[1750189423100,0.402,149.49,149.48,6.68985817]
[1750189423785,0.402,149.49,149.48,14.90982057]
[1750189424012,0.402,149.49,149.48,6.68985817]
[1750189424214,0.402,149.49,149.48,14.90982057]
[1750189424519,0.402,149.49,149.48,6.68985817]
[1750189424722,0.402,149.49,149.48,14.90982057]
[1750189424906,0.402,149.49,149.48,33.84379257]
[1750189425111,0.402,149.49,149.48,33.98595414]
[1750189425288,0.402,149.49,149.48,59.98595414]
[1750189425491,0.402,149.49,149.48,88.32595414]
[1750189425892,0.402,149.49,149.48,59.98595414]
[1750189428614,0.402,149.49,149.48,88.32595414]
[1750189430322,0.402,149.49,149.48,176.82595414]
[1750189432006,0.402,149.49,149.48,148.48595414]
[1750189433609,0.402,149.49,149.48,140.26599174]
[1750189433814,0.402,149.49,149.48,148.48595414]
[1750189435645,0.402,149.49,149.48,140.26599174]
[1750189435813,0.402,149.49,149.48,148.48595414]
[1750189439618,0.402,149.49,149.48,154.96595414]
[1750189440733,0.402,149.49,149.48,39.16985817]
[1750189440974,0.402,149.49,149.48,13.16985817]
[1750189441345,8.6219624,149.49,149.46,6.69075337]
[1750189441529,8.2199624,149.47,149.44,6.69164882]
[1750189442546,8.2199624,149.45,149.4,16.73302039]
[1750189442741,8.2199624,149.44,149.4,16.73302039]
[1750189443465,26.0,149.47,149.4,23.42646081]
[1750189443756,8.2199624,149.44,149.4,23.42646081]
[1750189444256,8.2199624,149.42,149.4,6.69344042]
[1750189444425,8.2199624,149.43,149.4,6.69344042]
[1750189445031,32.69041962,149.47,149.4,6.69344042]
[1750189445032,8.2199624,149.42,149.4,6.69344042]
[1750189445247,8.2199624,149.42,149.39,6.69388847]
[1750189446333,8.2199624,149.4,149.38,13.17425153]
[1750189446638,8.2199624,149.41,149.38,13.17425153]
[1750189448749,8.2199624,149.42,149.38,13.17425153]
[1750189448950,7.8947,149.48,149.41,8.2199624]
[1750189449153,7.8947,149.48,149.44,8.2199624]
[1750189449154,16.1146624,149.48,149.44,8.2199624]
[1750189449332,9.7942624,149.48,149.45,6.69120107]
[1750189450339,8.2199624,149.47,149.45,6.69120107]
[1750189450963,9.7942624,149.48,149.45,6.69120107]
[1750189451334,9.7942624,149.48,149.44,6.69164882]
[1750189451656,9.7942624,149.48,149.44,14.91161122]
[1750189453254,1.5743,149.48,149.44,6.69164882]
[1750189453452,9.7942624,149.48,149.44,6.69164882]
[1750189453875,9.7942624,149.48,149.44,14.91161122]
[1750189455942,1.5743,149.48,149.44,14.91161122]
[1750189459378,9.7942624,149.48,149.44,14.91161122]
[1750189460383,1.5743,149.48,149.45,8.2199624]
[1750189460577,34.2199624,149.5,149.46,8.2199624]
[1750189460785,26.0,149.51,149.47,8.2199624]
[1750189460988,26.0,149.51,149.46,8.2199624]
[1750189460989,34.2199624,149.51,149.46,8.2199624]
[1750189461357,34.2199624,149.51,149.47,8.2199624]
[1750189462079,26.402,149.51,149.47,8.2199624]
[1750189462581,0.402,149.51,149.48,14.90982057]
[1750189462889,0.402,149.51,149.48,6.68985817]
[1750189463253,8.6219624,149.51,149.48,6.68985817]
[1750189464287,8.2199624,149.5,149.48,6.68985817]
[1750189464469,8.6219624,149.51,149.47,6.69030574]
[1750189464861,8.6219624,149.51,149.47,14.91026814]
[1750189464862,0.402,149.51,149.47,14.91026814]
[1750189465068,8.6219624,149.51,149.47,14.91026814]
[1750189467366,0.402,149.51,149.47,14.91026814]
[1750189468575,8.6219624,149.51,149.47,14.91026814]
[1750189468882,0.402,149.51,149.47,14.91026814]
[1750189470105,0.402,149.51,149.49,8.2199624]
[1750189470980,0.402,149.51,149.48,8.2199624]
[1750189471374,8.6219624,149.51,149.47,6.69030574]
[1750189471590,8.2199624,149.49,149.46,6.69059267]
[1750189472110,8.2199624,149.48,149.45,6.69120107]
[1750189472696,8.2199624,149.47,149.45,6.69120107]
[1750189473101,1.6364,149.5,149.44,6.44]
[1750189473102,8.2199624,149.46,149.44,6.44]
[1750189473280,8.2199624,149.45,149.42,6.6925445]
[1750189473466,8.2199624,149.46,149.42,6.6925445]
[1750189474093,8.2199624,149.46,149.42,14.9125069]
[1750189474300,14.53826313,149.5,149.42,31.64386816]
[1750189474608,8.2199624,149.47,149.43,8.2199624]
[1750189477597,8.2199624,149.46,149.43,6.69209663]
[1750189477807,1.6364,149.5,149.44,8.2199624]
[1750189478111,8.2199624,149.48,149.44,8.2199624]
[1750189478785,8.2199624,149.49,149.44,8.2199624]
[1750189479601,8.2199624,149.49,149.45,6.69120107]
[1750189480200,8.2199624,149.49,149.45,14.91116347]
[1750189482789,8.6219624,149.49,149.45,6.69120107]
[1750189482981,8.2199624,149.48,149.45,6.69120107]
[1750189486104,8.6219624,149.49,149.45,6.69120107]
[1750189488910,8.2199624,149.48,149.45,6.69120107]
[1750189490711,0.402,149.49,149.45,6.69120107]
[1750189490712,0.402,149.49,149.45,14.91116347]
[1750189490919,8.2199624,149.5,149.45,14.91116347]
[1750189491093,8.2199624,149.5,149.45,31.63916614]
[1750189491508,8.2199624,149.49,149.45,31.63916614]
[1750189493986,8.2199624,149.48,149.45,6.69120107]
[1750189494183,32.68858947,149.51,149.45,6.69120107]
[1750189494415,8.2199624,149.47,149.44,6.69164882]
[1750189494601,8.2199624,149.48,149.44,6.69164882]
[1750189494791,8.2199624,149.48,149.44,14.91161122]
[1750189495202,8.2199624,149.49,149.44,14.91161122]
[1750189496711,8.2199624,149.5,149.45,8.2199624]
[1750189497418,8.2199624,149.49,149.45,8.2199624]
[1750189497597,26.0,149.51,149.45,8.2199624]
[1750189497801,8.2199624,149.49,149.45,8.2199624]
[1750189498220,8.2199624,149.5,149.45,8.2199624]
[1750189498419,8.2199624,149.5,149.46,6.69075337]
[1750189498609,8.2199624,149.49,149.46,6.69075337]
[1750189500094,32.68855425,149.51,149.46,6.69075337]
[1750189500290,8.2199624,149.49,149.46,6.69075337]
[1750189500604,8.2199624,149.49,149.45,6.69120107]
[1750189501521,8.2199624,149.46,149.42,6.42]
[1750189501696,8.2199624,149.45,149.42,13.11235502]
[1750189502024,8.2199624,149.47,149.42,21.33231742]
[1750189502318,8.2199624,149.49,149.44,8.2199624]
[1750189502519,8.2199624,149.49,149.45,6.69120107]
[1750189502824,8.2199624,149.49,149.45,14.91116347]
[1750189503123,8.2199624,149.49,149.45,6.69120107]
[1750189503541,26.0,149.51,149.46,8.2199624]
[1750189503698,8.2199624,149.53,149.48,8.2199624]
[1750189504018,26.0,149.53,149.46,8.2199624]
[1750189504220,8.2199624,149.5,149.46,8.2199624]
[1750189504528,6.68806848,149.52,149.47,6.69030574]
[1750189504733,8.2199624,149.5,149.47,6.69030574]
[1750189505139,8.2199624,149.51,149.47,6.69030574]
[1750189505710,8.2199624,149.51,149.47,14.91026814]
[1750189506010,8.2199624,149.5,149.47,6.69030574]
[1750189506819,8.2199624,149.48,149.4,18.64964886]
[1750189507014,8.2199624,149.47,149.42,22.8266624]
[1750189507221,8.2199624,149.46,149.43,6.69209663]
[1750189507420,8.2199624,149.47,149.43,6.69209663]
[1750189507730,27.5659,149.5,149.43,6.69209663]
[1750189507936,8.2199624,149.48,149.43,14.91205903]
[1750189508116,8.2199624,149.48,149.43,6.69209663]
[1750189508432,8.2199624,149.46,149.43,6.69209663]
[1750189509641,8.2199624,149.45,149.42,13.11236698]
[1750189511134,8.2199624,149.43,149.4,6.69300315]
[1750189511636,8.2199624,149.44,149.4,14.91296555]
[1750189512733,8.2199624,149.44,149.4,6.69300315]
[1750189512950,8.2199624,149.43,149.4,6.69300315]
[1750189513249,8.2199624,149.43,149.38,115.36961126]
[1750189513418,8.2199624,149.42,149.38,96.7199624]
[1750189513920,8.2199624,149.43,149.38,96.7199624]
[1750189514126,8.2199624,149.42,149.38,96.7199624]
[1750189514760,8.2199624,149.43,149.38,96.7199624]
[1750189514918,8.2199624,149.42,149.38,96.7199624]
[1750189515923,8.2199624,149.41,149.37,14.5999624]
[1750189517750,6.69138282,149.45,149.38,8.2199624]
[1750189518046,0.402,149.48,149.42,8.2199624]
[1750189518222,0.402,149.48,149.45,8.2199624]
[1750189518422,0.402,149.48,149.47,8.2199624]
[1750189521933,0.402,149.48,149.47,27.1539344]
[1750189522454,0.402,149.48,149.47,27.29609597]
[1750189523324,0.402,149.48,149.47,27.1539344]
[1750189523523,0.402,149.48,149.47,8.2199624]
[1750189523740,0.402,149.48,149.46,8.2199624]
[1750189523940,0.402,149.48,149.45,8.2199624]
[1750189524340,0.402,149.48,149.46,8.2199624]
[1750189524840,0.402,149.48,149.44,6.38]
[1750189525042,8.6219624,149.48,149.44,14.5999624]
[1750189525348,8.2199624,149.47,149.44,6.38]
[1750189526251,0.402,149.48,149.44,14.5999624]
[1750189526553,8.6219624,149.48,149.44,6.38]
[1750189526845,8.2199624,149.48,149.44,14.5999624]
[1750189527353,8.2199624,149.49,149.45,8.2199624]
[1750189528131,8.2199624,149.49,149.44,14.5999624]
[1750189528963,8.2199624,149.48,149.44,14.5999624]
[1750189530757,8.2199624,149.49,149.44,14.5999624]
[1750189532034,8.2199624,149.49,149.45,8.2199624]
[1750189532339,8.2199624,149.51,149.46,8.2199624]
[1750189532742,6.52264596,149.52,149.48,8.2199624]
[1750189532946,13.22640836,149.54,149.5,8.2199624]
[1750189533345,5.00644596,149.54,149.5,8.2199624]
[1750189533732,29.1736878,149.55,149.51,8.2199624]
[1750189533936,20.9537254,149.55,149.51,8.2199624]
[1750189534164,15.94727944,149.55,149.51,8.2199624]
[1750189534358,15.94727944,149.55,149.52,8.2199624]
[1750189535345,15.94727944,149.55,149.5,0.28432314]
[1750189535671,15.94727944,149.55,149.54,8.2199624]
[1750189539839,15.94727944,149.55,149.52,8.2199624]
[1750189542078,30.85400942,149.55,149.51,6.36]
[1750189542284,16.34927944,149.55,149.51,6.36]
[1750189542448,8.2199624,149.53,149.51,6.36]
[1750189542766,8.2199624,149.52,149.46,14.5799624]
[1750189542968,8.2199624,149.5,149.46,14.5799624]
[1750189543144,32.617181,149.54,149.46,6.36]
[1750189543347,8.2199624,149.5,149.46,6.36]
[1750189544470,8.2199624,149.49,149.46,6.36]
[1750189545066,8.2199624,149.48,149.46,6.36]
[1750189545576,8.2199624,149.49,149.46,6.36]
[1750189547342,8.2199624,149.48,149.46,6.36]
[1750189547554,8.2199624,149.52,149.43,34.2199624]
[1750189547555,8.2199624,149.47,149.43,34.2199624]
[1750189547849,8.2199624,149.46,149.42,8.2199624]
[1750189548038,8.2199624,149.47,149.42,8.2199624]
[1750189548238,8.2199624,149.47,149.41,25.00964886]
[1750189548239,8.2199624,149.47,149.43,8.2199624]
[1750189548443,8.2199624,149.5,149.45,8.2199624]
[1750189548669,8.2199624,149.48,149.43,0.42648471]
[1750189548877,8.2199624,149.47,149.42,44.64964886]
[1750189549174,8.2199624,149.47,149.43,8.2199624]
[1750189549882,8.2199624,149.48,149.43,8.2199624]
[1750189550287,8.2199624,149.47,149.42,44.64964886]
[1750189550488,8.2199624,149.46,149.41,6.64432314]
[1750189550789,8.2199624,149.46,149.42,8.2199624]
[1750189551870,8.2199624,149.47,149.43,8.2199624]
[1750189553063,8.2199624,149.49,149.44,8.2199624]
[1750189553260,7.7948,149.54,149.44,0.28432314]
[1750189553460,8.2199624,149.49,149.44,0.42648471]
[1750189553675,8.2199624,149.48,149.44,8.2199624]
[1750189554364,26.0,149.51,149.44,8.2199624]
[1750189554687,8.2199624,149.48,149.44,8.2199624]
[1750189555169,8.2199624,149.47,149.43,18.64964886]
[1750189555694,8.2199624,149.47,149.43,26.86961126]
[1750189555877,8.2199624,149.48,149.43,26.86961126]
[1750189556667,8.2199624,149.48,149.41,6.36]
[1750189556668,8.2199624,149.44,149.41,6.36]
[1750189556987,8.2199624,149.45,149.41,14.5799624]
[1750189557196,8.2199624,149.46,149.42,8.2199624]
[1750189557571,1.6644,149.48,149.41,6.36]
[1750189557572,8.2199624,149.45,149.41,14.5799624]
[1750189557770,8.2199624,149.46,149.42,8.2199624]
[1750189558172,8.2199624,149.48,149.43,8.2199624]
[1750189558372,8.2199624,149.47,149.43,8.2199624]
[1750189560073,8.2199624,149.44,149.42,26.0]
[1750189560372,8.2199624,149.43,149.39,57.31288679]
[1750189560575,8.2199624,149.4,149.35,22.5703624]
[1750189560794,8.2199624,149.4,149.36,26.0]
[1750189561370,6.69164882,149.44,149.36,34.2199624]
[1750189561576,8.2199624,149.4,149.36,8.2199624]
[1750189562396,44.5340142,149.46,149.39,8.2199624]
[1750189562397,1.6644,149.46,149.39,8.2199624]
[1750189562598,8.2199624,149.45,149.41,8.2199624]
[1750189562982,8.2199624,149.44,149.4,8.2199624]
[1750189563911,8.2199624,149.45,149.41,8.2199624]
[1750189564201,8.2199624,149.46,149.4,18.64964886]
[1750189564512,8.2199624,149.46,149.42,8.2199624]
[1750189564684,0.402,149.44,149.42,8.2199624]
[1750189565274,0.402,149.44,149.41,8.2199624]
[1750189565792,0.402,149.44,149.4,18.64964886]
[1750189566175,0.402,149.44,149.41,8.2199624]
[1750189567800,0.402,149.44,149.4,26.86961126]
[1750189568102,0.402,149.44,149.39,0.28432314]
[1750189568281,0.402,149.44,149.4,8.2199624]
[1750189568799,0.402,149.44,149.41,8.2199624]
[1750189570990,0.402,149.44,149.43,8.2199624]
[1750189571607,0.402,149.44,149.39,0.28432314]
[1750189571902,0.402,149.44,149.43,8.2199624]
[1750189572078,0.402,149.44,149.42,8.2199624]
[1750189575015,0.402,149.44,149.43,8.2199624]
[1750189575600,0.402,149.44,149.42,18.933972]
[1750189575803,0.402,149.44,149.42,27.1539344]
[1750189576316,0.402,149.44,149.43,8.2199624]
[1750189580608,0.402,149.44,149.43,27.29609597]
[1750189584127,0.402,149.44,149.43,115.79609597]
[1750189584525,0.402,149.44,149.43,107.57613357]
[1750189584710,0.402,149.44,149.43,115.79609597]
[1750189587240,0.402,149.44,149.43,107.57613357]
[1750189587405,0.402,149.44,149.43,115.79609597]
[1750189589028,0.402,149.44,149.43,143.89609597]
[1750189589440,0.402,149.44,149.43,135.67613357]
[1750189589605,0.402,149.44,149.43,143.89609597]
[1750189591130,0.402,149.44,149.43,88.5]
[1750189591303,0.402,149.44,149.43,96.7199624]
[1750189592216,0.402,149.44,149.43,88.5]
[1750189593317,8.6219624,149.44,149.41,6.34]
[1750189593537,8.2199624,149.43,149.41,6.34]
[1750189595110,8.2199624,149.44,149.41,6.34]
[1750189596236,8.2199624,149.42,149.36,6.3]
[1750189596435,8.2199624,149.39,149.36,6.3]
[1750189596814,6.6541,149.43,149.36,6.3]
[1750189597134,8.2199624,149.39,149.36,6.3]
[1750189598920,13.24101196,149.42,149.36,6.3]
[1750189599105,8.2199624,149.37,149.36,6.3]
[1750189599530,8.2199624,149.38,149.36,6.3]
[1750189600133,13.24101196,149.42,149.36,6.3]
[1750189600310,8.2199624,149.38,149.36,6.3]
[1750189601246,13.24117273,149.42,149.36,6.3]
[1750189601422,8.2199624,149.38,149.36,6.3]
[1750189601920,8.2199624,149.39,149.36,6.3]
[1750189602651,7.78325745,149.46,149.36,25.09181043]
[1750189602820,1.5252,149.46,149.4,8.2199624]
[1750189603146,8.2199624,149.45,149.41,8.2199624]
[1750189604341,1.5252,149.46,149.42,8.2199624]
[1750189604545,8.2199624,149.47,149.43,8.2199624]
[1750189604842,8.2199624,149.47,149.42,8.2199624]
[1750189605223,15.71460194,149.48,149.44,8.2199624]
[1750189605445,15.71460194,149.48,149.45,8.2199624]
[1750189606324,15.71460194,149.48,149.43,6.32]
[1750189606632,15.71460194,149.48,149.46,8.2199624]
[1750189606828,15.71460194,149.48,149.43,6.32]
[1750189607037,15.71460194,149.48,149.45,8.2199624]
[1750189607224,16.11660194,149.48,149.45,8.2199624]
[1750189608322,16.11660194,149.48,149.46,8.2199624]